bitfinex/quotes_BTCUSD_20250812
["timestamp","ask_amount","ask_price","bid_price","bid_amount"]
[1754992142831,0.34092068,118650.0,118640.0,0.1695772]
[1754992143000,0.7094979,118650.0,118640.0,0.1695772]
[1754992163523,0.34092068,118650.0,118640.0,0.1695772]
[1754992163718,0.7094979,118650.0,118640.0,0.1695772]
[1754992163954,0.7094979,118650.0,118640.0,0.001]
[1754992164164,1.07807512,118650.0,118640.0,0.001]
[1754992165226,1.07707512,118650.0,118640.0,0.001]
[1754992165664,1.07807512,118650.0,118640.0,0.001]
[1754992166292,0.1685772,118640.0,118630.0,0.19702087]
[1754992166522,1.07291932,118640.0,118630.0,0.19702087]
[1754992166730,1.07598932,118640.0,118630.0,0.19702087]
[1754992168272,1.07698932,118640.0,118630.0,0.20002087]
[1754992168724,1.07698932,118640.0,118630.0,0.023]
[1754992169123,1.10230932,118640.0,118630.0,0.023]
[1754992172550,0.36515488,118640.0,118630.0,0.023]
[1754992172859,1.10230932,118640.0,118630.0,0.023]
[1754992175281,0.36515488,118640.0,118630.0,0.023]
[1754992175458,1.10230932,118640.0,118630.0,0.023]
[1754992178088,0.36515488,118640.0,118630.0,0.023]
[1754992178313,1.10230932,118640.0,118630.0,0.023]
[1754992184543,0.36515488,118640.0,118630.0,0.023]
[1754992184738,1.10230932,118640.0,118630.0,0.023]
[1754992186810,1.10230932,118640.0,118630.0,0.022]
[1754992187424,1.10230932,118640.0,118630.0,0.02]
[1754992187779,1.10330932,118640.0,118630.0,0.021]
[1754992191979,1.12075834,118640.0,118630.0,0.021]
[1754992193425,0.3836039,118640.0,118630.0,0.021]
[1754992194264,0.66969669,118640.0,118630.0,0.021]
[1754992194471,0.65224767,118640.0,118630.0,0.021]
[1754992196049,0.28367045,118640.0,118630.0,0.18959141]
[1754992196377,0.65224767,118640.0,118630.0,0.18959141]
[1754992196578,0.65224767,118640.0,118630.0,0.021]
[1754992196747,0.7347321,118640.0,118630.0,0.021]
[1754992196955,0.7347321,118640.0,118630.0,0.18959141]
[1754992199301,0.36615488,118640.0,118630.0,0.18959141]
[1754992199505,0.7347321,118640.0,118630.0,0.18959141]
[1754992204272,0.36615488,118640.0,118630.0,0.18959141]
[1754992204412,0.7347321,118640.0,118630.0,0.18959141]
[1754992207015,0.36615488,118640.0,118630.0,0.18959141]
[1754992207220,0.7347321,118640.0,118630.0,0.18959141]
[1754992208064,0.19559768,118640.0,118630.0,0.18959141]
[1754992208279,0.002,118640.0,118630.0,0.55816863]
[1754992211526,0.002,118640.0,118630.0,0.18959141]
[1754992211730,0.002,118640.0,118630.0,0.55816863]
[1754992211934,0.002,118640.0,118630.0,0.18959141]
[1754992212105,0.00522,118640.0,118630.0,0.55816863]
[1754992212482,0.00522,118640.0,118630.0,0.18959141]
[1754992212689,0.002,118640.0,118630.0,0.55816863]
[1754992213467,0.00522,118640.0,118630.0,0.55816863]
[1754992213897,0.002,118640.0,118630.0,0.55816863]
[1754992215430,0.00522,118640.0,118630.0,0.55816863]
[1754992215839,0.002,118640.0,118630.0,0.55816863]
[1754992216474,0.002,118640.0,118630.0,0.18959141]
[1754992216688,0.002,118640.0,118630.0,0.55816863]
[1754992217457,0.002,118640.0,118630.0,0.18959141]
[1754992217779,0.002,118640.0,118630.0,0.55816863]
[1754992218523,0.00522,118640.0,118630.0,0.55816863]
[1754992218731,0.00522,118640.0,118630.0,0.18959141]
[1754992218926,0.00522,118640.0,118630.0,0.55816863]
[1754992220894,0.00522,118640.0,118630.0,0.55820863]
[1754992224026,0.002,118640.0,118630.0,0.55820863]
[1754992225266,0.002,118640.0,118630.0,0.18963141]
[1754992225515,0.002,118640.0,118630.0,0.92678585]
[1754992225761,0.002,118640.0,118630.0,1.07209885]
[1754992226798,0.002,118640.0,118630.0,0.70352163]
[1754992227587,0.002,118640.0,118630.0,0.33494441]
[1754992227776,0.002,118640.0,118630.0,0.70352163]
[1754992234275,0.002,118640.0,118630.0,1.07209885]
[1754992237571,0.002,118640.0,118630.0,0.70352163]
[1754992242966,0.002,118640.0,118630.0,1.07209885]
[1754992243412,0.002,118640.0,118630.0,0.70352163]
[1754992244506,0.00516,118640.0,118630.0,0.70352163]
[1754992256541,0.00516,118640.0,118630.0,0.33494441]
[1754992256746,0.00516,118640.0,118630.0,0.70352163]
[1754992257159,0.00516,118640.0,118630.0,0.33494441]
[1754992257336,0.00516,118640.0,118630.0,0.70352163]
[1754992257951,0.00516,118640.0,118630.0,0.33494441]
[1754992258239,0.00516,118640.0,118630.0,0.70352163]
[1754992258556,0.002,118640.0,118630.0,0.70352163]
[1754992258767,0.002,118640.0,118630.0,1.1648221]
[1754992260630,0.002,118640.0,118630.0,1.1638221]
[1754992260631,0.001,118640.0,118630.0,1.1638221]
[1754992261082,0.002,118640.0,118630.0,1.1668221]
[1754992261530,0.001,118640.0,118630.0,1.1668221]
[1754992262170,0.001,118640.0,118630.0,1.1678221]
[1754992262638,0.001,118640.0,118630.0,0.43066766]
[1754992262861,0.001,118640.0,118630.0,1.1678221]
[1754992263986,0.00416,118640.0,118630.0,1.1678221]
[1754992265280,0.00416,118640.0,118630.0,0.43066766]
[1754992265492,0.00416,118640.0,118630.0,1.1678221]
[1754992267463,0.00416,118640.0,118630.0,0.79924488]
[1754992267659,0.00416,118640.0,118630.0,1.1678221]
[1754992270781,0.00416,118640.0,118630.0,0.79924488]
[1754992271328,0.00416,118640.0,118630.0,0.43066766]
[1754992271543,0.00416,118640.0,118630.0,0.79924488]
[1754992273890,0.00416,118640.0,118630.0,1.1678221]
[1754992277613,0.00416,118640.0,118630.0,0.79924488]
[1754992278932,0.37481722,118640.0,118630.0,0.32794441]
[1754992279358,0.00624,118640.0,118630.0,0.32794441]
[1754992281507,0.00624,118640.0,118630.0,0.69652163]
[1754992285167,0.00624,118640.0,118630.0,0.32794441]
[1754992285382,0.00624,118640.0,118630.0,0.69652163]
[1754992286448,0.00624,118640.0,118630.0,0.32794441]
[1754992286667,0.00624,118640.0,118630.0,0.69652163]
[1754992287775,0.00624,118640.0,118630.0,0.32794441]
[1754992287985,0.37481722,118640.0,118630.0,0.32794441]
[1754992288195,0.00624,118640.0,118630.0,0.32794441]
[1754992288407,0.00624,118640.0,118630.0,0.69652163]
[1754992290794,0.37481722,118640.0,118630.0,0.32794441]
[1754992291017,0.00624,118640.0,118630.0,0.31263141]
[1754992291938,0.00624,118640.0,118630.0,0.68120863]
[1754992294298,0.00624,118640.0,118630.0,0.31263141]
[1754992294441,0.37481722,118640.0,118630.0,0.19263141]
[1754992295436,0.00624,118640.0,118630.0,0.19263141]
[1754992296006,0.00624,118640.0,118630.0,0.56120863]
[1754992303277,0.00624,118640.0,118630.0,0.19263141]
[1754992303483,0.00624,118640.0,118630.0,0.56120863]
[1754992306287,0.00624,118640.0,118630.0,0.19263141]
[1754992306493,0.00624,118640.0,118630.0,0.56120863]
[1754992307984,0.00624,118640.0,118630.0,0.19263141]
[1754992308176,0.00624,118640.0,118630.0,0.56120863]
[1754992310058,0.00624,118640.0,118630.0,0.19263141]
[1754992310234,0.00624,118640.0,118630.0,0.56120863]
[1754992315082,0.00624,118640.0,118630.0,0.19263141]
[1754992315326,0.00624,118640.0,118630.0,0.56120863]
[1754992317058,0.00624,118640.0,118630.0,0.19263141]
[1754992317478,0.00624,118640.0,118630.0,0.56120863]
[1754992318593,0.00624,118640.0,118630.0,0.19263141]
[1754992318807,0.00624,118640.0,118630.0,0.56120863]
[1754992319677,0.00624,118640.0,118630.0,0.19263141]
[1754992322119,0.00416,118640.0,118630.0,0.19263141]
[1754992322566,0.00416,118640.0,118630.0,0.56120863]
[1754992322696,0.00612,118640.0,118630.0,0.56120863]
[1754992323937,0.001,118640.0,118630.0,0.19263141]
[1754992324187,0.001,118640.0,118630.0,0.56120863]
[1754992324398,0.001,118640.0,118630.0,0.58652263]
[1754992325055,0.00416,118640.0,118630.0,0.58652263]
[1754992325839,0.00416,118640.0,118630.0,0.70652263]
[1754992326669,0.00416,118640.0,118630.0,0.33794541]
[1754992326935,0.00416,118640.0,118630.0,0.70652263]
[1754992329272,0.00612,118640.0,118630.0,0.70652263]
[1754992329507,0.00612,118640.0,118630.0,0.33794541]
[1754992330531,0.37469722,118640.0,118630.0,0.19263141]
[1754992335172,0.54327442,118640.0,118630.0,0.19263141]
[1754992335590,0.1746972,118640.0,118630.0,0.19263141]
[1754992335803,0.54327442,118640.0,118630.0,0.19263141]
[1754992340725,0.00612,118640.0,118630.0,0.19263141]
[1754992342400,0.1746972,118640.0,118630.0,0.19263141]
[1754992344222,0.00612,118640.0,118630.0,0.19263141]
[1754992344426,0.37469722,118640.0,118630.0,0.19263141]
[1754992345109,0.00612,118640.0,118630.0,0.19263141]
[1754992348799,0.37469722,118640.0,118630.0,0.19263141]
[1754992348981,0.00612,118640.0,118630.0,0.19263141]
[1754992350056,0.37469722,118640.0,118630.0,0.19263141]
[1754992350821,0.37465722,118640.0,118630.0,0.19263141]
[1754992352484,0.00608,118640.0,118630.0,0.19263141]
[1754992357259,0.54323442,118640.0,118630.0,0.19263141]
[1754992358726,0.1746572,118640.0,118630.0,0.19263141]
[1754992358937,0.54323442,118640.0,118630.0,0.19263141]
[1754992368011,0.1746572,118640.0,118630.0,0.19263141]
[1754992368188,0.54323442,118640.0,118630.0,0.19263141]
[1754992369396,0.91181164,118640.0,118630.0,0.02404]
[1754992369753,1.05718719,118640.0,118630.0,0.02404]
[1754992370443,0.32003275,118640.0,118630.0,0.02404]
[1754992370678,1.05718719,118640.0,118630.0,0.02404]
[1754992371625,1.05718719,118640.0,118630.0,0.02304]
[1754992372075,1.05818719,118640.0,118630.0,0.02304]
[1754992372342,1.05722719,118640.0,118630.0,0.02004]
[1754992372566,1.05822719,118640.0,118630.0,0.02104]
[1754992379018,1.52167621,118640.0,118630.0,0.02104]
[1754992379875,1.54699621,118640.0,118630.0,0.02104]
[1754992380812,0.16860563,118620.0,118610.0,0.17325126]
[1754992380996,0.53718285,118620.0,118610.0,0.14779011]
[1754992381214,0.54222285,118620.0,118610.0,0.12246684]
[1754992381941,0.54227173,118620.0,118610.0,0.13089783]
[1754992382358,0.91184895,118620.0,118610.0,0.004]
[1754992382932,0.54327173,118620.0,118610.0,0.004]
[1754992383333,0.55177874,118620.0,118610.0,0.004]
[1754992384400,0.26069394,118620.0,118610.0,0.004]
[1754992384604,0.62927116,118620.0,118610.0,0.004]
[1754992385438,0.71199441,118620.0,118610.0,0.004]
[1754992386615,0.71199441,118620.0,118610.0,0.17261984]
[1754992387714,0.33491018,118620.0,118610.0,0.17261984]
[1754992387969,0.7034874,118620.0,118610.0,0.17261984]
[1754992389019,0.71188874,118620.0,118610.0,0.17261984]
[1754992389412,0.7034874,118620.0,118610.0,0.17261984]
[1754992392264,0.33491018,118620.0,118610.0,0.17261984]
[1754992392469,0.7034874,118620.0,118610.0,0.17261984]
[1754992392677,0.71212714,118620.0,118610.0,0.17261984]
[1754992396541,0.7034874,118620.0,118610.0,0.17261984]
[1754992397534,0.7288094,118620.0,118610.0,0.17261984]
[1754992397734,0.73711437,118620.0,118610.0,0.17261984]
[1754992399857,0.73711437,118620.0,118610.0,0.004]
[1754992401987,1.10569159,118620.0,118610.0,0.004]
[1754992403577,1.15631159,118620.0,118610.0,0.004]
[1754992403789,1.10569159,118620.0,118610.0,0.004]
[1754992405626,0.36853715,118620.0,118610.0,0.004]
[1754992405881,1.10569159,118620.0,118610.0,0.004]
[1754992410973,1.55169159,118620.0,118610.0,0.004]
[1754992414829,0.81453715,118620.0,118610.0,0.004]
[1754992415035,1.55169159,118620.0,118610.0,0.004]
[1754992416450,1.10569159,118620.0,118610.0,0.004]
[1754992422422,1.12314061,118620.0,118610.0,0.004]
[1754992423817,1.17379061,118620.0,118610.0,0.004]
[1754992424190,1.54236783,118620.0,118610.0,0.004]
[1754992425170,1.19893474,118620.0,118610.0,0.003]
[1754992425617,1.19993474,118620.0,118610.0,0.003]
[1754992426421,0.18606886,118610.0,118600.0,0.0003]
[1754992426584,0.74281939,118610.0,118600.0,0.0003]
[1754992426793,0.74583939,118610.0,118600.0,0.0003]
[1754992427182,0.77116639,118610.0,118600.0,0.0003]
[1754992428003,0.77216639,118610.0,118600.0,0.0023]
[1754992430802,0.40358917,118610.0,118600.0,0.0023]
[1754992431434,0.77216639,118610.0,118600.0,0.0023]
[1754992432866,0.77013639,118610.0,118600.0,0.0023]
[1754992433109,0.77216639,118610.0,118600.0,0.0023]
[1754992434565,0.38614015,118610.0,118600.0,0.0023]
[1754992434773,0.75471737,118610.0,118600.0,0.0023]
[1754992435184,0.77216639,118610.0,118600.0,0.0023]
[1754992436261,0.40358917,118610.0,118600.0,0.0023]
[1754992436460,0.77216639,118610.0,118600.0,0.0023]
[1754992440410,0.40358917,118610.0,118600.0,0.0023]
[1754992440888,0.77216639,118610.0,118600.0,0.0023]
[1754992442569,0.40358917,118610.0,118600.0,0.0023]
[1754992442776,0.77216639,118610.0,118600.0,0.0023]
[1754992442974,0.40358917,118610.0,118600.0,0.0023]
[1754992443333,0.77216639,118610.0,118600.0,0.0023]
[1754992446561,0.39853917,118610.0,118600.0,0.0023]
[1754992446762,0.77216639,118610.0,118600.0,0.0023]
[1754992446963,0.40358917,118610.0,118600.0,0.0023]
[1754992447163,0.77216639,118610.0,118600.0,0.0023]
[1754992447373,0.40358917,118610.0,118600.0,0.0023]
[1754992447582,0.77216639,118610.0,118600.0,0.0023]
[1754992449002,0.40358917,118610.0,118600.0,0.0023]
[1754992449195,0.77216639,118610.0,118600.0,0.0023]
[1754992450617,0.38109015,118610.0,118600.0,0.17093406]
[1754992451038,0.38416015,118610.0,118600.0,0.17093406]
[1754992451198,0.75273737,118610.0,118600.0,0.17093406]
[1754992451400,0.75273737,118610.0,118600.0,0.0023]
[1754992451600,0.75479737,118610.0,118600.0,0.0023]
[1754992452230,0.38622015,118610.0,118600.0,0.17093406]
[1754992452411,0.75479737,118610.0,118600.0,0.17093406]
[1754992453400,0.75479737,118610.0,118600.0,0.0023]
[1754992456334,0.75479737,118610.0,118600.0,0.17093406]
[1754992457261,0.75273737,118610.0,118600.0,0.17093406]
[1754992457691,0.38416015,118610.0,118600.0,0.17093406]
[1754992457892,0.75273737,118610.0,118600.0,0.17093406]
[1754992458048,0.38416015,118610.0,118600.0,0.17093406]
[1754992458249,0.75273737,118610.0,118600.0,0.17093406]
[1754992458882,0.72741037,118610.0,118600.0,0.17093406]
[1754992459840,0.72947037,118610.0,118600.0,0.17093406]
[1754992462645,0.19227331,118610.0,118600.0,0.17093406]
[1754992462848,0.4783661,118610.0,118600.0,0.17093406]
[1754992463317,0.64698594,118610.0,118600.0,0.17093406]
[1754992466617,0.27840872,118610.0,118600.0,0.17093406]
[1754992466819,0.64698594,118610.0,118600.0,0.17093406]
[1754992468285,0.27634872,118610.0,118600.0,0.17093406]
[1754992468524,0.69778516,118610.0,118600.0,0.17093406]
[1754992468728,0.32920794,118610.0,118600.0,0.17093406]
[1754992468926,0.69984516,118610.0,118600.0,0.17093406]
[1754992470922,0.69980516,118610.0,118600.0,0.17097406]
[1754992471917,0.64694594,118610.0,118600.0,0.17097406]
[1754992477225,0.77506594,118610.0,118600.0,0.17097406]
[1754992482612,0.40648872,118610.0,118600.0,0.17097406]
[1754992482840,0.77506594,118610.0,118600.0,0.17097406]
[1754992483174,0.77506594,118610.0,118600.0,0.00234]
[1754992483373,0.85755037,118610.0,118600.0,0.00234]
[1754992493351,0.85755037,118610.0,118600.0,0.17097406]
[1754992495978,0.85755037,118610.0,118600.0,0.00234]
[1754992505441,1.22612759,118610.0,118600.0,0.00234]
[1754992505836,1.25145359,118610.0,118600.0,0.00234]
[1754992506990,1.25045359,118610.0,118600.0,0.00034]
[1754992507425,1.25145359,118610.0,118600.0,0.00134]
[1754992507631,0.88287637,118610.0,118600.0,0.00134]
[1754992508926,0.88387637,118610.0,118600.0,0.00134]
[1754992520381,0.51529915,118610.0,118600.0,0.00134]
[1754992520582,0.88387637,118610.0,118600.0,0.00134]
[1754992522460,0.90132539,118610.0,118600.0,0.00134]
[1754992522670,1.26990261,118610.0,118600.0,0.00134]
[1754992523496,0.90132539,118610.0,118600.0,0.00134]
[1754992526527,1.26990261,118610.0,118600.0,0.00134]
[1754992528259,1.26790261,118610.0,118600.0,0.00034]
[1754992528904,1.47038261,118610.0,118600.0,0.00034]
[1754992529123,1.47438261,118610.0,118600.0,0.00134]
[1754992529743,1.47938261,118610.0,118600.0,0.00234]
[1754992530327,1.53003261,118610.0,118600.0,0.00234]
[1754992530911,1.52999261,118610.0,118600.0,0.00234]
[1754992531475,0.1686625,118580.0,118570.0,0.00044257]
[1754992531757,0.18613997,118560.0,118550.0,0.19771978]
[1754992531963,1.13918766,118560.0,118550.0,0.0225]
[1754992532728,0.91964369,118560.0,118550.0,0.0225]
[1754992532931,0.91964369,118560.0,118550.0,0.02298882]
[1754992533665,0.42541222,118560.0,118550.0,0.02298882]
[1754992533871,1.00016812,118560.0,118550.0,0.02298882]
[1754992534048,1.00846785,118560.0,118550.0,0.02298882]
[1754992534706,1.01046785,118560.0,118550.0,0.02398882]
[1754992534911,1.01246785,118560.0,118550.0,0.02398882]
[1754992535332,1.00846785,118560.0,118550.0,0.02298882]
[1754992535544,1.00946785,118560.0,118550.0,0.02298882]
[1754992535949,1.00116812,118560.0,118550.0,0.191694]
[1754992536211,0.50889665,118560.0,118550.0,0.02298882]
[1754992537485,0.50989665,118560.0,118550.0,0.02298882]
[1754992537676,0.51185665,118560.0,118550.0,0.02298882]
[1754992538350,1.00412812,118560.0,118550.0,0.02298882]
[1754992541205,1.45012812,118560.0,118550.0,0.02298882]
[1754992546511,0.95785665,118560.0,118550.0,0.02298882]
[1754992546867,1.45012812,118560.0,118550.0,0.02298882]
[1754992550359,0.95785665,118560.0,118550.0,0.02298882]
[1754992550580,1.45012812,118560.0,118550.0,0.02298882]
[1754992552653,1.69621787,118560.0,118550.0,0.02298882]
[1754992558006,0.95785665,118560.0,118550.0,0.02298882]
[1754992558207,1.69621787,118560.0,118550.0,0.02298882]
[1754992559489,0.95785665,118560.0,118550.0,0.02298882]
[1754992559696,1.69621787,118560.0,118550.0,0.02298882]
[1754992561141,1.7041088,118560.0,118550.0,0.02298882]
[1754992563796,0.96574758,118560.0,118550.0,0.02298882]
[1754992563971,1.7041088,118560.0,118550.0,0.02298882]
[1754992565236,0.96574758,118560.0,118550.0,0.02298882]
[1754992565444,1.7041088,118560.0,118550.0,0.02298882]
[1754992566189,0.96574758,118560.0,118550.0,0.02298882]
[1754992566395,1.7041088,118560.0,118550.0,0.02298882]
[1754992566822,1.70411003,118560.0,118550.0,0.02298882]
[1754992567451,1.70410994,118560.0,118550.0,0.02298882]
[1754992568252,1.33492933,118560.0,118550.0,0.02298882]
[1754992568999,1.70410994,118560.0,118550.0,0.02298882]
[1754992569412,1.33492933,118560.0,118550.0,0.02298882]
[1754992569652,1.70410994,118560.0,118550.0,0.02298882]
[1754992569844,1.33492933,118560.0,118550.0,0.02298882]
[1754992570260,1.70410994,118560.0,118550.0,0.02298882]
[1754992575141,1.69621787,118560.0,118550.0,0.02298882]
[1754992579101,0.95785665,118560.0,118550.0,0.02298882]
[1754992579323,1.69621787,118560.0,118550.0,0.02298882]
[1754992585475,0.16870518,118550.0,118540.0,0.09360784]
[1754992585690,0.38278843,118550.0,118540.0,0.09360784]
[1754992585906,0.75196904,118550.0,118540.0,0.09360784]
[1754992586119,0.1282,118550.0,118540.0,0.46278845]
[1754992586329,0.153538,118550.0,118540.0,0.09360784]
[1754992586533,0.1282,118550.0,118540.0,0.46278845]
[1754992586753,0.1302,118550.0,118540.0,0.46278845]
[1754992587193,0.1312,118550.0,118540.0,0.46378845]
[1754992587802,0.1312,118550.0,118540.0,0.09460784]
[1754992588065,0.1312,118550.0,118540.0,0.46378845]
[1754992588770,0.003,118550.0,118540.0,0.83296906]
[1754992588987,0.13112,118550.0,118540.0,0.83296906]
[1754992590826,0.13112,118550.0,118540.0,0.09460784]
[1754992591304,0.13112,118550.0,118540.0,0.46378845]
[1754992594631,0.13112,118550.0,118540.0,0.83296906]
[1754992594852,0.13112,118550.0,118540.0,0.58673928]
[1754992596009,0.13112,118550.0,118540.0,0.09460784]
[1754992596247,0.13112,118550.0,118540.0,0.58673928]
[1754992598368,0.13112,118550.0,118540.0,0.09460784]
[1754992598597,0.13112,118550.0,118540.0,0.58673928]
[1754992599660,0.13116,118550.0,118540.0,0.58673928]
[1754992600104,0.13116,118550.0,118540.0,0.09460784]
[1754992600340,0.13116,118550.0,118540.0,0.58673928]
[1754992601735,0.13418,118550.0,118540.0,0.58673928]
[1754992601942,0.13418,118550.0,118540.0,0.09460784]
[1754992602159,0.13631,118550.0,118540.0,0.58673928]
[1754992605423,0.13631,118550.0,118540.0,0.09460784]
[1754992605629,0.13631,118550.0,118540.0,0.58673928]
[1754992606161,0.13631,118550.0,118540.0,0.09460784]
[1754992608506,0.46383991,118550.0,118540.0,0.09460784]
[1754992608918,0.46383991,118550.0,118540.0,0.001]
[1754992609092,0.95597135,118550.0,118540.0,0.001]
[1754992609853,0.46383991,118550.0,118540.0,0.001]
[1754992610063,0.48917991,118550.0,118540.0,0.001]
[1754992611590,0.98131135,118550.0,118540.0,0.001]
[1754992613723,0.48917991,118550.0,118540.0,0.001]
[1754992614182,0.98131135,118550.0,118540.0,0.001]
[1754992620665,1.03127135,118550.0,118540.0,0.001]
[1754992622795,0.9083733,118550.0,118540.0,0.001]
[1754992623811,0.53913991,118550.0,118540.0,0.001]
[1754992624052,0.9083733,118550.0,118540.0,0.001]
[1754992627590,0.53913991,118550.0,118540.0,0.001]
[1754992627801,0.9083733,118550.0,118540.0,0.001]
[1754992631569,0.53913991,118550.0,118540.0,0.001]
[1754992631773,0.9083733,118550.0,118540.0,0.001]
[1754992633886,0.53913991,118550.0,118540.0,0.001]
[1754992634106,0.9083733,118550.0,118540.0,0.001]
[1754992634347,0.53913991,118550.0,118540.0,0.001]
[1754992634546,0.9083733,118550.0,118540.0,0.001]
[1754992638490,0.53913991,118550.0,118540.0,0.001]
[1754992638690,0.9083733,118550.0,118540.0,0.001]
[1754992643149,0.53913991,118550.0,118540.0,0.001]
[1754992643367,0.9083733,118550.0,118540.0,0.001]
[1754992645350,0.53913991,118550.0,118540.0,0.001]
[1754992645784,0.9083733,118550.0,118540.0,0.001]
[1754992647519,0.53913991,118550.0,118540.0,0.001]
[1754992647729,0.9083733,118550.0,118540.0,0.001]
[1754992649176,0.9590233,118550.0,118540.0,0.001]
[1754992649375,0.9083733,118550.0,118540.0,0.001]
[1754992649589,0.53913991,118550.0,118540.0,0.001]
[1754992649995,0.9083733,118550.0,118540.0,0.001]
[1754992654262,0.8983733,118550.0,118540.0,0.001]
[1754992656828,0.82227182,118550.0,118540.0,0.001]
[1754992658251,0.45303843,118550.0,118540.0,0.001]
[1754992658481,0.82227182,118550.0,118540.0,0.001]
[1754992661456,0.81227182,118550.0,118540.0,0.001]
[1754992672193,0.80227182,118550.0,118540.0,0.001]
[1754992672675,0.88475625,118550.0,118540.0,0.001]
[1754992678420,1.25398964,118550.0,118540.0,0.001]
[1754992678634,0.88475625,118550.0,118540.0,0.001]
[1754992686804,1.70828245,118550.0,118540.0,0.001]
[1754992687034,1.79182411,118550.0,118540.0,0.001]
[1754992687250,1.7977427,118550.0,118540.0,0.001]
[1754992687493,1.42259072,118550.0,118540.0,0.001]
[1754992687729,1.42259072,118550.0,118530.0,0.04045958]
[1754992687730,0.23681843,118540.0,118530.0,0.04045958]
[1754992687956,1.34453284,118530.0,118520.0,0.00027]
[1754992688172,1.57893624,118530.0,118520.0,0.00027]
[1754992688403,0.32470592,118530.0,118520.0,0.00027]
[1754992688615,0.08787325,118530.0,118520.0,0.17111789]
[1754992688835,0.08272325,118530.0,118520.0,0.54035128]
[1754992689063,0.3798569,118530.0,118520.0,0.17111789]
[1754992689278,0.3868169,118530.0,118520.0,0.17443789]
[1754992689505,0.21808325,118530.0,118520.0,0.17211789]
[1754992689727,0.21608325,118530.0,118520.0,0.17111789]
[1754992690152,0.58731664,118530.0,118520.0,0.17211789]
[1754992690806,0.21808325,118530.0,118520.0,0.17211789]
[1754992691017,0.28367801,118530.0,118520.0,0.17211789]
[1754992691490,0.28367801,118530.0,118520.0,0.17111789]
[1754992691491,0.28167801,118530.0,118520.0,0.17111789]
[1754992691719,0.28367801,118530.0,118520.0,0.54135128]
[1754992691934,0.28367801,118530.0,118520.0,0.54367128]
[1754992692389,0.28467801,118530.0,118520.0,0.54467128]
[1754992692613,0.09068325,118530.0,118520.0,0.91390467]
[1754992692835,0.13148,118530.0,118520.0,0.91390467]
[1754992694901,0.13148,118530.0,118520.0,0.66771409]
[1754992695559,0.003,118530.0,118520.0,1.15999029]
[1754992695769,0.13148,118530.0,118520.0,0.66771409]
[1754992696003,0.13148,118530.0,118520.0,1.15999029]
[1754992696932,0.13148,118530.0,118520.0,0.66771409]
[1754992697156,0.13148,118530.0,118520.0,0.17543789]
[1754992697385,0.13148,118530.0,118520.0,1.27271354]
[1754992698597,0.13148,118530.0,118520.0,1.28133687]
[1754992699245,0.13148,118530.0,118520.0,1.30667187]
[1754992700883,0.13148,118530.0,118520.0,0.32211947]
[1754992701292,0.13148,118530.0,118520.0,0.81439567]
[1754992701488,0.003,118530.0,118520.0,1.30667187]
[1754992701695,0.13152,118530.0,118520.0,1.30667187]
[1754992701897,0.13152,118530.0,118520.0,0.81439567]
[1754992702323,0.13152,118530.0,118520.0,0.73167242]
[1754992704619,0.13152,118530.0,118520.0,0.72304909]
[1754992705263,0.13152,118530.0,118520.0,0.73151404]
[1754992706212,0.13152,118530.0,118520.0,0.72304909]
[1754992707704,0.13152,118530.0,118520.0,0.19845289]
[1754992707900,0.13663,118530.0,118520.0,0.66539409]
[1754992708348,0.37297405,118530.0,118520.0,0.17101789]
[1754992708548,0.37297405,118530.0,118520.0,0.00227]
[1754992708700,0.37297405,118530.0,118520.0,0.17101789]
[1754992709052,0.41368024,118530.0,118520.0,0.17101789]
[1754992709449,0.2042404,118530.0,118520.0,0.17101789]
[1754992712229,0.37297405,118530.0,118520.0,0.17101789]
[1754992713871,0.37297405,118530.0,118520.0,0.00227]
[1754992714126,0.9479735,118530.0,118520.0,0.00227]
[1754992715115,0.4556973,118530.0,118520.0,0.00227]
[1754992715579,0.53818173,118530.0,118520.0,0.00227]
[1754992717271,0.53818173,118530.0,118520.0,0.00507]
[1754992717477,1.03045793,118530.0,118520.0,0.00507]
[1754992723442,1.47645793,118530.0,118520.0,0.00507]
[1754992724245,5.47645793,118530.0,118520.0,0.00507]
[1754992725506,5.49390695,118530.0,118520.0,0.00507]
[1754992725715,5.51925295,118530.0,118520.0,0.00507]
[1754992726150,5.02697675,118530.0,118520.0,0.00407]
[1754992726358,5.51825295,118530.0,118520.0,0.00407]
[1754992726559,5.51625295,118530.0,118520.0,0.00307]
[1754992726997,5.51725295,118530.0,118520.0,0.00407]
[1754992728747,5.39438313,118530.0,118520.0,0.00407]
[1754992730109,5.32677273,118530.0,118520.0,0.00407]
[1754992730553,4.88077273,118530.0,118520.0,0.00407]
[1754992730778,4.88077273,118530.0,118520.0,0.00411]
[1754992738724,4.56205635,118530.0,118520.0,0.00411]
[1754992738938,4.88077273,118530.0,118520.0,0.00411]
[1754992739477,4.51136635,118530.0,118520.0,0.00411]
[1754992739692,4.88077273,118530.0,118520.0,0.00411]
[1754992739913,4.86332371,118530.0,118520.0,0.00411]
[1754992740122,4.49391733,118530.0,118520.0,0.00411]
[1754992740338,4.86332371,118530.0,118520.0,0.00411]
[1754992740523,4.86332371,118530.0,118520.0,0.00623]
[1754992740939,4.86332371,118530.0,118520.0,0.00411]
[1754992742210,5.23273009,118530.0,118520.0,0.00411]
[1754992742659,4.86332371,118530.0,118520.0,0.00411]
[1754992742895,4.98647936,118530.0,118520.0,0.00411]
[1754992743324,5.00392838,118530.0,118520.0,0.00411]
[1754992745815,4.51136635,118530.0,118520.0,0.00411]
[1754992745998,5.00392838,118530.0,118520.0,0.00411]
[1754992747871,5.00392838,118530.0,118520.0,0.00101]
[1754992758946,4.51136635,118530.0,118520.0,0.00101]
[1754992759164,5.00392838,118530.0,118520.0,0.00101]
[1754992763709,4.51136635,118530.0,118520.0,0.00101]
[1754992763918,5.00392838,118530.0,118520.0,0.00101]
[1754992764795,5.25021885,118530.0,118520.0,0.00101]
[1754992770233,4.51136635,118530.0,118520.0,0.00101]
[1754992770448,4.8807926,118530.0,118520.0,0.00101]
[1754992772553,4.86334358,118530.0,118520.0,0.00299]
[1754992772761,4.86039358,118530.0,118520.0,0.00299]
[1754992773396,4.86339358,118530.0,118520.0,0.00299]
[1754992778145,4.86339358,118530.0,118520.0,0.00101]
[1754992781797,4.49396733,118530.0,118520.0,0.00101]
[1754992782031,4.86339358,118530.0,118520.0,0.00101]